[Event "Czech Youth U14 Boys 2024"]
[Site "Kouty nad Desnou"]
[Date "2024.03.11"]
[Round "3.5"]
[White "Kroulik, Vaclav"]
[Black "Krivka, Matej"]
[Result "1/2-1/2"]
[ECO "D35"]
[WhiteElo "1936"]
[BlackElo "1850"]
[Annotator "RC"]
[PlyCount "105"]
[EventDate "2024.03.10"]
[EventType "swiss"]
[EventCountry "CZE"]
[SourceTitle "playchess.com"]
[Source "ChessBase"]
[SourceQuality "1"]
[TimeControl "40/5400+30:1800+30"]

1. c4 {[%emt 0:00:06]} e6 {[%emt 0:00:12]} 2. Nc3 {[%emt 0:00:07]} d5 {[%emt 0:00:10]} 3. d4 {[%emt 0:00:24]} Nf6 {[%emt 0:00:25]} 4. cxd5 {[%emt 0:00:29]} exd5 {[%emt 0:00:15]} 5. Bg5 {[%emt 0:00:20]} Be7 {[%emt 0:00:27]} 6. e3 {[%emt 0:00:23]} O-O {[%emt 0:00:55]} 7. Bd3 {[%emt 0:00:22]} Nbd7 {[%emt 0:03:57]} 8. Qc2 {[%emt 0:01:42]} c6 {[%emt 0:02:27]} 9. Nge2 {[%emt 0:00:19]} Re8 {[%emt 0:02:20]} 10. O-O {[%emt 0:00:52]} h6 {[%emt 0:00:28]} 11. Bh4 {[%emt 0:00:34]} Nf8 {[%emt 0:01:10]} 12. Rae1 {[%emt 0:01:19]} Ne6 {[%emt 0:02:09]} 13. f3 {[%emt 0:04:06]} b6 {[%emt 0:03:10]} 14. Bf2 {[%emt 0:05:38]} c5 {[%emt 0:03:31]} 15. Bf5 {[%emt 0:15:55]} Bf8 {[%emt 0:13:23]} 16. Rd1 {[%emt 0:11:40]} Nc7 {[%emt 0:16:07]} 17. Rd2 {[%emt 0:09:38]} Bxf5 {[%emt 0:03:50]} 18. Qxf5 {[%emt 0:00:58]} Qc8 {[%emt 0:01:04]} 19. Qxc8 {[%emt 0:03:59]} Raxc8 {[%emt 0:00:26]} 20. dxc5 {[%emt 0:00:41]} Bxc5 {[%emt 0:07:22]} 21. Nd4 {[%emt 0:02:33]} Ne6 {[%emt 0:03:08]} 22. Nc2 {[%emt 0:03:55]} Nc7 {[%emt 0:06:49]} 23. Rfd1 {[%emt 0:01:03]} Kh7 {[%emt 0:08:34]} 24. Kf1 {[%emt 0:01:12]} g5 {[%emt 0:01:06]} 25. g4 {[%emt 0:02:04]} Bd6 {[%emt 0:04:44]} 26. Kg2 {[%emt 0:00:51]} Be5 {[%emt 0:01:18]} 27. Nd4 {[%emt 0:02:53]} Ne6 {[%emt 0:00:54]} 28. Nce2 {[%emt 0:01:32]} Nxd4 {[%emt 0:03:39]} 29. Nxd4 {[%emt 0:00:59]} Bxd4 {[%emt 0:01:42]} 30. Rxd4 {[%emt 0:00:10]} Rc2 {[%emt 0:00:51]} 31. R4d2 {[%emt 0:00:51]} Rec8 {[%emt 0:00:34]} 32. Bg3 {[%emt 0:00:42]} Kg6 {[%emt 0:02:45]} 33. Be5 {[%emt 0:00:38]} R2c5 {[%emt 0:01:55]} 34. Kf2 {[%emt 0:01:28]} Nd7 {[%emt 0:00:53]} 35. Bc3 {[%emt 0:00:34]} Nf6 {[%emt 0:01:05]} 36. Ke2 {[%emt 0:00:23]} Rd8 {[%emt 0:00:21]} 37. e4 {[%emt 0:01:33]} Re8 {[%emt 0:01:43]} 38. Bxf6 {[%emt 0:00:40]} Kxf6 {[%emt 0:00:21]} 39. Rxd5 {[%emt 0:00:07]} Rc2+ {[%emt 0:00:46]} 40. R5d2 {[%emt 0:00:16]} Rec8 {[%emt 0:02:16]} 41. Rxc2 {[%emt 0:30:40]} Rxc2+ {[%emt 0:30:07]} 42. Rd2 {[%emt 0:00:06]} Rc1 {[%emt 0:00:26]} 43. Ke3 {[%emt 0:04:05]} Re1+ {[%emt 0:00:00]} 44. Kf2 {[%emt 0:00:00]} Rh1 {[%emt 0:00:00]} 45. Kg3 {[%emt 0:00:00]} Rg1+ {[%emt 0:00:00]} 46. Kh3 {[%emt 0:00:00]} Rf1 {[%emt 0:00:00]} 47. Kg2 {[%emt 0:00:00]} Rc1 {[%emt 0:00:00]} 48. Kf2 {[%emt 0:00:00]} Rh1 {[%emt 0:00:00]} 49. Ke3 {[%emt 0:00:00]} Re1+ {[%emt 0:00:00]} 50. Re2 {[%emt 0:00:00]} Rc1 {[%emt 0:00:00]} 51. e5+ {[%emt 0:10:53]} Ke6 {[%emt 0:00:00]} 52. Kd4 {[%emt 0:00:22]} Rc5 {[%emt 0:00:00]} 53. b3 {[%emt 0:01:33]} 1/2-1/2

[Event "Czech Youth U14 Boys 2024"]
[Site "Kouty nad Desnou"]
[Date "2024.03.11"]
[Round "3.6"]
[White "Komarek, Tobias"]
[Black "Vana, Jan"]
[Result "0-1"]
[ECO "A45"]
[WhiteElo "1822"]
[BlackElo "1908"]
[Annotator "RC"]
[PlyCount "56"]
[EventDate "2024.03.10"]
[EventType "swiss"]
[EventCountry "CZE"]
[SourceTitle "playchess.com"]
[Source "ChessBase"]
[SourceQuality "1"]
[TimeControl "40/5400+30:1800+30"]

1. d4 {[%emt 0:00:05]} Nf6 {[%emt 0:00:15]} 2. Bg5 {[%emt 0:00:08]} Ne4 {[%emt 0:04:07]} 3. Bf4 {[%emt 0:00:16]} d5 {[%emt 0:00:50]} 4. e3 {[%emt 0:00:50]} c5 {[%emt 0:02:55]} 5. Bd3 {[%emt 0:01:16]} Qb6 {[%emt 0:05:46]} 6. Bxe4 {[%emt 0:43:29]} dxe4 {[%emt 0:04:15]} 7. b3 {[%emt 0:02:53]} Bf5 {[%emt 0:09:25]} 8. Nc3 {[%emt 0:03:45]} cxd4 {[%emt 0:12:12]} 9. Qxd4 {[%emt 0:00:55]} Qxd4 {[%emt 0:06:47]} 10. exd4 {[%emt 0:00:06]} e6 {[%emt 0:11:09]} 11. Nge2 {[%emt 0:00:56]} Nc6 {[%emt 0:03:39]} 12. O-O {[%emt 0:02:20]} Bb4 {[%emt 0:04:32]} 13. Rfd1 {[%emt 0:03:41]} Bg4 {[%emt 0:07:32]} 14. Rdc1 {[%emt 0:15:29]} Nxd4 {[%emt 0:02:54]} 15. Kf1 {[%emt 0:00:26]} Rc8 {[%emt 0:04:08]} 16. Be5 {[%emt 0:06:39]} Nxe2 {[%emt 0:05:09]} 17. Nxe2 {[%emt 0:00:08]} Ba3 {[%emt 0:00:31]} 18. Ng3 {[%emt 0:09:20]} Bxc1 {[%emt 0:01:01]} 19. Rxc1 {[%emt 0:00:04]} O-O {[%emt 0:02:41]} 20. c4 {[%emt 0:01:56]} Bf5 {[%emt 0:02:22]} 21. Ne2 {[%emt 0:04:41]} Rfd8 {[%emt 0:00:57]} 22. Bd4 {[%emt 0:00:17]} Bg4 {[%emt 0:02:49]} 23. Bxa7 {[%emt 0:00:50]} Ra8 {[%emt 0:01:05]} 24. Bb6 {[%emt 0:00:25]} Bxe2+ {[%emt 0:00:13]} 25. Kxe2 {[%emt 0:00:09]} Rxa2+ {[%emt 0:00:08]} 26. Ke1 {[%emt 0:00:19]} Rdd2 {[%emt 0:03:08]} 27. b4 {[%emt 0:00:37]} f5 {[%emt 0:00:48]} 28. c5 {[%emt 0:00:09]} Re2+ {[%emt 0:00:14]} 0-1

[Event "Czech Youth U14 Boys 2024"]
[Site "Kouty nad Desnou"]
[Date "2024.03.11"]
[Round "3.7"]
[White "Migalko, Dmitriy"]
[Black "Kutil, Adam"]
[Result "0-1"]
[ECO "B12"]
[WhiteElo "1896"]
[BlackElo "1820"]
[Annotator "NA RC"]
[PlyCount "66"]
[EventDate "2024.03.10"]
[EventType "swiss"]
[EventCountry "CZE"]
[SourceTitle "playchess.com"]
[Source "ChessBase"]
[SourceQuality "1"]
[TimeControl "40/5400+30:1800+30"]

{[%evp 8,55,13,32767,32767,32767,32767,32767,32767,32767,32767,32767,32767,32767,32767,32767,32767,32767,32767,0,32,25,37,0,32767,0,12,32767,0,32767,0,0,27,32767,0,14,18,0,20,10,279,41,52,0,0,0,0,32767,-37,-326]} 1. e4 {[%emt 0:00:03]} c6 {[%emt 0:00:20]} 2. d4 {[%emt 0:00:20]} d5 {[%emt 0:00:14]} 3. e5 {[%emt 0:00:07]} Bf5 {[%emt 0:00:49]} 4. h4 {[%emt 0:00:30]} h6 {[%emt 0:00:21]} 5. g4 {[%emt 0:01:54]} Be4 {[%emt 0:01:27]} 6. f3 {[%emt 0:00:44]} Bh7 {[%emt 0:00:06] B12: Caro-Kann (Vorstoß-Variante).} 7. Bd3 {[%emt 0:07:18]} Bxd3 {[%emt 0:00:30]} 8. Qxd3 {[%emt 0:00:07]} e6 {[%emt 0:00:11]} 9. Be3 {[%emt 0:03:50]} Qb6 {[%emt 0:02:51]} 10. Qb3 {[%emt 0:03:47]} Qxb3 {[%emt 0:01:25]} 11. axb3 {[%emt 0:00:39]} Nd7 {[%emt 0:00:11]} 12. Nc3 {[%emt 0:03:19]} a6 {[%emt 0:06:47]} 13. Nge2 {[%emt 0:02:52]} Rc8 {[%emt 0:06:37]} 14. h5 {[%emt 0:05:32]} c5 {[%emt 0:03:28]} 15. O-O-O {[%emt 0:04:40]} (15. f4 $14 {feels stronger.}) 15... Ne7 {[%emt 0:04:58]} 16. f4 {[%emt 0:02:40]} Nc6 {[%emt 0:01:40]} 17. dxc5 {[%emt 0:07:01]} Bxc5 {[%emt 0:00:46]} 18. Bxc5 {[%emt 0:00:52]} Nxc5 {[%emt 0:00:08]} 19. Nd4 {[%emt 0:01:40]} f6 {[%emt 0:14:10]} 20. exf6 gxf6 {[%emt 0:00:21]} 21. Nf3 {[%emt 0:09:26]} Rg8 {[%emt 0:07:23]} 22. Rhg1 {[%emt 0:11:51]} Nb4 {[%emt 0:06:45]} 23. g5 {[%emt 0:02:18]} Ne4 $2 {[%emt 0:02:57]} (23... fxg5 $11 {and Black is okay.} 24. fxg5 hxg5) 24. gxf6 $2 {[%emt 0:06:56]} (24. gxh6 $18 Rh8 25. Nd4 Nxc3 26. bxc3 Rxc3 27. Rg7 (27. Nxe6 Rxh6 28. Rd2 Kd7 $16) (27. Rg6 Ke7 $18) 27... Nxc2 28. Nxc2 Rxh6 29. Kb2 (29. Rxb7 Kf8 $18)) 24... Kf7 {[%emt 0:16:04]} 25. Nxe4 {[%emt 0:05:06]} (25. Ne5+ $1 $14 Kxf6 26. Ng4+ Kg7 27. Nf2+ (27. Nxe4 dxe4 28. c4 Nd3+ 29. Kc2 Nxf4 $11) 27... Kf8 28. Rxg8+ Kxg8 29. Nfxe4 dxe4 30. Rd4 (30. Nxe4 Rxc2+ 31. Kb1 Re2 $17)) 25... dxe4 {[%emt 0:01:57]} 26. Ne5+ {[%emt 0:01:49]} Kxf6 {[%emt 0:00:36]} 27. Ng4+ {[%emt 0:04:34] [#]} Ke7 {[%emt 0:00:43]} (27... Rxg4 $1 $17 28. Rxg4 Rxc2+ 29. Kb1 Rh2) 28. Ne5 $19 {[%emt 0:05:51]} ({Günstiger ist} 28. c3 $15) 28... Rxc2+ {[%emt 0:03:21]} 29. Kb1 {[%emt 0:00:02]} Rxg1 {[%emt 0:01:52]} 30. Rxg1 {[%emt 0:00:03]} Rh2 {[%emt 0:00:59]} 31. Rd1 {[%emt 0:01:15]} Rxh5 {[%emt 0:01:36]} 32. Kc1 {[%emt 0:00:21]} Nd5 {[%emt 0:03:37]} 33. Rg1 {[%emt 0:00:51]} Nxf4 0-1

[Event "Czech Youth U14 Boys 2024"]
[Site "Kouty nad Desnou"]
[Date "2024.03.11"]
[Round "3.8"]
[White "Sotek, Simon"]
[Black "Svadlenka, Dominik"]
[Result "1-0"]
[ECO "B12"]
[WhiteElo "1793"]
[BlackElo "1888"]
[Annotator "NA RC"]
[PlyCount "103"]
[EventDate "2024.03.10"]
[EventType "swiss"]
[EventCountry "CZE"]
[SourceTitle "playchess.com"]
[Source "ChessBase"]
[SourceQuality "1"]
[TimeControl "40/5400+30:1800+30"]

1. e4 {[%emt 0:00:06]} c6 {[%emt 0:00:04]} 2. d4 {[%emt 0:00:08]} d5 {[%emt 0:00:04]} 3. e5 {[%emt 0:00:04]} c5 {[%emt 0:00:03]} 4. c3 {[%emt 0:00:06]} Nc6 {[%emt 0:00:11]} 5. Nf3 {[%emt 0:00:09]} Bg4 {[%emt 0:00:14]} 6. dxc5 {[%emt 0:00:21] B12: Caro-Kann: Advance Variation.} e6 {[%emt 0:01:08]} 7. Bb5 {[%emt 0:00:16]} Bxc5 {[%emt 0:00:50]} 8. Bxc6+ {[%emt 0:00:06]} bxc6 {[%emt 0:00:12]} 9. Qa4 {[%emt 0:00:04]} Qb6 {[%emt 0:03:34]} 10. Qxg4 {[%emt 0:00:08]} Bxf2+ {[%emt 0:00:06]} 11. Ke2 {[%emt 0:00:09]} Ne7 {[%emt 0:02:24]} 12. Qb4 {[%emt 0:00:56]} Ng6 {[%emt 0:08:19]} 13. Qxb6 {[%emt 0:01:18]} Bxb6 {[%emt 0:00:05]} 14. Re1 {[%emt 0:02:45]} O-O {[%emt 0:01:18]} 15. Be3 {[%emt 0:01:57]} Rab8 {[%emt 0:02:45]} 16. b3 {[%emt 0:02:41]} c5 {[%emt 0:03:40]} 17. a4 {[%emt 0:04:51]} a5 {[%emt 0:12:29]} 18. Na3 {[%emt 0:01:48]} f6 {[%emt 0:02:39]} 19. exf6 {[%emt 0:02:16]} gxf6 {[%emt 0:01:06]} 20. Rad1 {[%emt 0:02:52]} Ne7 {[%emt 0:02:49]} 21. Kf1 {[%emt 0:02:21]} e5 {[%emt 0:10:36]} 22. Nb5 {[%emt 0:08:40]} Rfd8 {[%emt 0:04:50]} 23. g4 {[%emt 0:03:27]} Ng6 {[%emt 0:07:13]} 24. c4 {[%emt 0:03:47]} e4 {[%emt 0:14:34]} 25. Nd2 {[%emt 0:01:32]} d4 {[%emt 0:01:52]} 26. Bh6 {[%emt 0:02:56]} e3 {[%emt 0:03:25]} 27. Ne4 {[%emt 0:01:45]} Kf7 {[%emt 0:05:24]} 28. Ke2 {[%emt 0:14:36]} Ne5 {[%emt 0:02:51]} 29. Bf4 {[%emt 0:01:33]} Ke6 {[%emt 0:00:27]} 30. Bxe5 {[%emt 0:00:19]} Kxe5 {[%emt 0:00:22]} 31. Ng3 {[%emt 0:07:06]} Rg8 {[%emt 0:02:06]} 32. h3 {[%emt 0:00:23]} Rg5 {[%emt 0:01:28]} 33. Rf1 {[%emt 0:02:17]} Rf8 {[%emt 0:00:32]} 34. Rf3 {[%emt 0:00:34]} Ke6 {[%emt 0:07:30]} 35. Rdf1 {[%emt 0:00:50]} Bd8 {[%emt 0:00:41]} 36. Rf5 {[%emt 0:00:28]} Rxf5 {[%emt 0:01:25]} 37. Rxf5 {[%emt 0:00:15]} Bb6 {[%emt 0:00:04]} 38. Ne4 {[%emt 0:00:20]} h5 {[%emt 0:00:38]} 39. Rxh5 {[%emt 0:00:55]} f5 {[%emt 0:00:23]} 40. gxf5+ {[%emt 0:01:31]} Ke5 $18 {[%emt 0:00:23]} 41. Kf3 {[%emt 0:31:57]} Rxf5+ {[%emt 0:30:47]} 42. Rxf5+ {[%emt 0:00:09]} Kxf5 {[%emt 0:00:06]} 43. Nbd6+ {[%emt 0:01:30]} Kg6 {[%emt 0:01:22]} 44. Nb7 {[%emt 0:02:07]} Kh5 {[%emt 0:00:17]} 45. Nbxc5 {[%emt 0:00:12]} Kh4 {[%emt 0:00:29]} 46. Ne6 {[%emt 0:00:17]} d3 {[%emt 0:01:03]} 47. c5 {[%emt 0:00:19]} e2 {[%emt 0:00:00]} 48. Kf2 {[%emt 0:00:00]} Ba7 {[%emt 0:00:00]} 49. Nf4 {[%emt 0:00:00]} Bb6 {[%emt 0:00:00]} 50. cxb6 {[%emt 0:00:00]} e1=Q+ {[%emt 0:00:00]} 51. Kxe1 {[%emt 0:00:00]} d2+ {[%emt 0:00:00]} 52. Nxd2 {[%emt 0:00:00]} 1-0

[Event "Czech Youth U14 Boys 2024"]
[Site "Kouty nad Desnou"]
[Date "2024.03.11"]
[Round "3.9"]
[White "Srba, Daniel"]
[Black "Macosek, Alex"]
[Result "1-0"]
[ECO "B13"]
[WhiteElo "1742"]
[BlackElo "1781"]
[Annotator "NA RC"]
[PlyCount "83"]
[EventDate "2024.03.10"]
[EventType "swiss"]
[EventCountry "CZE"]
[SourceTitle "playchess.com"]
[Source "ChessBase"]
[SourceQuality "1"]
[TimeControl "40/5400+30:1800+30"]

1. e4 {[%emt 0:00:02]} c6 {[%emt 0:00:43]} 2. d4 {[%emt 0:00:08]} d5 {[%emt 0:00:16]} 3. exd5 {[%emt 0:00:04]} cxd5 {[%emt 0:01:03]} 4. Bd3 {[%emt 0:00:32]} Nf6 {[%emt 0:00:37]} 5. h3 {[%emt 0:00:13]} Nc6 {[%emt 0:07:21]} 6. c3 {[%emt 0:00:07]} e6 {[%emt 0:01:13]} 7. Bf4 {[%emt 0:00:31]} Bd6 {[%emt 0:01:27]} 8. Bxd6 {[%emt 0:02:26]} Qxd6 {[%emt 0:00:52]} 9. Nf3 {[%emt 0:00:50]} O-O {[%emt 0:01:47]} 10. O-O {[%emt 0:01:07]} a6 {[%emt 0:00:27]} 11. Re1 {[%emt 0:00:17]} Bd7 {[%emt 0:08:30]} 12. Ne5 {[%emt 0:00:10]} Rfc8 {[%emt 0:00:53]} 13. Re3 {[%emt 0:05:28]} Be8 {[%emt 0:02:06]} 14. Nd2 {[%emt 0:00:40]} b5 {[%emt 0:01:22]} 15. a3 {[%emt 0:01:23]} Na5 {[%emt 0:01:44]} 16. g4 {[%emt 0:04:12]} Nc4 {[%emt 0:03:22]} 17. Bxc4 {[%emt 0:02:08]} bxc4 {[%emt 0:00:43]} 18. g5 {[%emt 0:06:23]} Nd7 {[%emt 0:01:48]} 19. f4 {[%emt 0:01:48]} Rab8 {[%emt 0:05:02]} 20. Rb1 {[%emt 0:01:01]} Rb7 {[%emt 0:12:36]} 21. Rg3 {[%emt 0:08:46]} Nf8 {[%emt 0:03:28]} 22. Ndf3 {[%emt 0:05:17]} Rcb8 {[%emt 0:00:56]} 23. Rg2 {[%emt 0:00:11]} Qxa3 {[%emt 0:00:49]} 24. Ra1 {[%emt 0:03:01]} Qd6 {[%emt 0:01:48]} 25. Ra2 {[%emt 0:02:00]} Ng6 {[%emt 0:03:53]} 26. Nxg6 {[%emt 0:01:03]} hxg6 {[%emt 0:00:14]} 27. Ne5 {[%emt 0:00:10]} Rb3 {[%emt 0:02:46]} 28. h4 {[%emt 0:00:53]} Qb6 {[%emt 0:05:09]} 29. Qg4 {[%emt 0:04:40]} Kf8 {[%emt 0:09:56]} 30. h5 {[%emt 0:02:02]} gxh5 {[%emt 0:07:03]} 31. Qxh5 {[%emt 0:01:31]} Ke7 {[%emt 0:01:17]} 32. Qh8 {[%emt 0:00:39]} Rb7 {[%emt 0:03:22]} 33. Qxg7 {[%emt 0:01:11]} Kd8 {[%emt 0:03:30]} 34. Qf6+ {[%emt 0:05:37]} Kc8 {[%emt 0:03:04]} 35. Qh8 {[%emt 0:01:03]} Kd8 {[%emt 0:01:18]} 36. Nxf7+ {[%emt 0:05:12]} Rxf7 {[%emt 0:02:28]} 37. g6 {[%emt 0:00:15]} Rd7 {[%emt 0:00:54]} 38. g7 {[%emt 0:00:32]} Rxg7 {[%emt 0:00:01]} 39. Qxg7 {[%emt 0:00:06]} Bd7 {[%emt 0:02:10]} 40. Qe5 {[%emt 0:01:22]} Kc8 {[%emt 0:01:15]} 41. Rg8+ {[%emt 0:30:09]} Kb7 {[%emt 0:30:26]} 42. Rb8+ {[%emt 0:00:05]} 1-0

[Event "Czech Youth U14 Boys 2024"]
[Site "Kouty nad Desnou"]
[Date "2024.03.11"]
[Round "3.10"]
[White "Gregor, Alexandr"]
[Black "Stara, Zuzana"]
[Result "1-0"]
[ECO "B12"]
[WhiteElo "1777"]
[BlackElo "1807"]
[Annotator "NA RC"]
[PlyCount "51"]
[EventDate "2024.03.10"]
[EventType "swiss"]
[EventCountry "CZE"]
[SourceTitle "playchess.com"]
[Source "ChessBase"]
[SourceQuality "1"]
[TimeControl "40/5400+30:1800+30"]

1. e4 {[%emt 0:00:03]} c6 {[%emt 0:00:03]} 2. d4 {[%emt 0:00:06]} d5 {[%emt 0:00:03]} 3. e5 {[%emt 0:00:03]} Bf5 {[%emt 0:00:05]} 4. h4 {[%emt 0:00:05]} h5 {[%emt 0:00:08]} 5. Ne2 {[%emt 0:01:18]} e6 {[%emt 0:00:37]} 6. Ng3 {[%emt 0:00:28]} Bg6 {[%emt 0:00:43]} 7. Be2 {[%emt 0:02:47]} c5 {[%emt 0:04:07]} 8. Nd2 {[%emt 0:23:38] B12: Caro-Kann: Advance Variation.} Nc6 {[%emt 0:11:03]} 9. Nf3 {[%emt 0:23:51]} c4 {[%emt 0:27:01]} 10. c3 {[%emt 0:01:27]} b5 {[%emt 0:01:09]} 11. Ng5 {[%emt 0:04:58]} b4 {[%emt 0:01:52]} 12. Nxh5 {[%emt 0:05:27]} bxc3 {[%emt 0:01:35]} 13. bxc3 {[%emt 0:00:05]} Qa5 {[%emt 0:00:52]} 14. Bd2 {[%emt 0:02:27]} Rb8 {[%emt 0:13:51]} 15. Nf4 {[%emt 0:03:45]} Nge7 {[%emt 0:01:10]} 16. Nxg6 {[%emt 0:04:00]} Nxg6 {[%emt 0:00:08]} 17. Bh5 {[%emt 0:00:18]} Nce7 {[%emt 0:01:35]} 18. Qf3 {[%emt 0:10:06]} Nf5 {[%emt 0:08:04]} 19. g4 {[%emt 0:00:20]} Ngxh4 {[%emt 0:04:15] [#]} 20. Rxh4 $18 {[%emt 0:04:32]} Nxh4 {[%emt 0:01:17]} 21. Qxf7+ {[%emt 0:00:08]} Kd8 {[%emt 0:00:05]} 22. Nxe6+ {[%emt 0:01:17]} Kc8 {[%emt 0:00:11]} 23. Qe8+ {[%emt 0:06:54]} Kb7 24. Rb1+ {[%emt 0:00:48]} Bb4 {[%emt 0:01:56]} 25. Rxb4+ {[%emt 0:00:32]} Ka6 {[%emt 0:00:40]} 26. Qc6+ {[%emt 0:00:23]} 1-0

[Event "Czech Youth U14 Boys 2024"]
[Site "Kouty nad Desnou"]
[Date "2024.03.11"]
[Round "3.11"]
[White "Lorenc, Matej"]
[Black "Jezek, Jakub"]
[Result "0-1"]
[ECO "B95"]
[WhiteElo "1637"]
[BlackElo "1854"]
[Annotator "NA RC"]
[PlyCount "118"]
[EventDate "2024.03.10"]
[EventType "swiss"]
[EventCountry "CZE"]
[SourceTitle "playchess.com"]
[Source "ChessBase"]
[SourceQuality "1"]
[TimeControl "40/5400+30:1800+30"]

1. e4 {[%emt 0:00:01]} c5 {[%emt 0:00:05]} 2. Nf3 {[%emt 0:00:05]} d6 {[%emt 0:00:05]} 3. d4 {[%emt 0:00:09]} cxd4 {[%emt 0:00:03]} 4. Nxd4 {[%emt 0:00:06]} Nf6 {[%emt 0:00:04]} 5. Nc3 {[%emt 0:00:11]} a6 {[%emt 0:00:03]} 6. Bg5 {[%emt 0:00:13]} e6 {[%emt 0:00:40]} 7. Be2 {[%emt 0:02:24]} Be7 {[%emt 0:00:06]} 8. Qd2 {[%emt 0:00:44]} Qc7 {[%emt 0:00:45]} 9. O-O {[%emt 0:00:29]} b5 {[%emt 0:00:59] B95: Sicilian Najdorf: 6 Bg5 e6, unusual White 7th moves.} 10. a3 {[%emt 0:02:08]} Bb7 {[%emt 0:00:17]} 11. f3 {[%emt 0:00:11]} Nbd7 {[%emt 0:00:48]} 12. b4 {[%emt 0:01:05]} Rc8 {[%emt 0:01:59]} 13. Nb1 {[%emt 0:04:01]} O-O {[%emt 0:02:13]} 14. Bd3 {[%emt 0:01:06]} h6 {[%emt 0:04:21]} 15. Be3 {[%emt 0:00:32]} Ne5 {[%emt 0:01:57]} 16. f4 {[%emt 0:01:28]} Neg4 {[%emt 0:02:59]} 17. h3 {[%emt 0:00:20]} Nxe3 {[%emt 0:00:03]} 18. Qxe3 {[%emt 0:00:09]} Nd7 {[%emt 0:05:58]} 19. Nd2 {[%emt 0:02:54]} Bf6 {[%emt 0:01:36]} 20. N2b3 {[%emt 0:00:37]} Qb6 {[%emt 0:02:32]} 21. Rac1 {[%emt 0:01:27]} (21. Rae1 $17) 21... Rc3 {[%emt 0:04:25]} 22. Rfe1 {[%emt 0:01:19]} (22. Qf2 $17 {might work better.}) 22... Rfc8 {[%emt 0:08:54]} 23. Kf2 {[%emt 0:02:05]} g6 {[%emt 0:05:19]} 24. Ne2 {[%emt 0:00:09]} Qxe3+ {[%emt 0:01:17]} 25. Kxe3 {[%emt 0:01:13]} R3c7 {[%emt 0:00:54]} 26. Na5 {[%emt 0:00:37]} Nb6 {[%emt 0:03:59]} 27. Nxb7 {[%emt 0:01:19]} Rxb7 {[%emt 0:00:49]} 28. g4 {[%emt 0:02:44]} Nc4+ {[%emt 0:00:42]} 29. Bxc4 {[%emt 0:00:29]} Rxc4 {[%emt 0:01:03]} 30. Red1 {[%emt 0:00:36]} Be7 {[%emt 0:04:44]} 31. c3 {[%emt 0:01:42]} Rbc7 {[%emt 0:02:26]} 32. Rd4 {[%emt 0:00:52]} e5 {[%emt 0:12:30]} 33. fxe5 {[%emt 0:01:55]} Bg5+ {[%emt 0:00:53]} 34. Kd3 {[%emt 0:00:50]} Bxc1 35. exd6 {[%emt 0:00:12]} Rxd4+ {[%emt 0:01:56]} 36. cxd4 {[%emt 0:00:10]} Rd7 {[%emt 0:01:58]} 37. Nxc1 {[%emt 0:00:08]} Rxd6 {[%emt 0:00:03]} 38. e5 {[%emt 0:00:11]} Rc6 {[%emt 0:00:23]} 39. Nb3 {[%emt 0:00:22]} h5 $2 {[%emt 0:08:42]} (39... Rc4 $17 {and life is bright.} 40. Nc5 Kf8 41. Nxa6 Rc1) 40. Nc5 {[%emt 0:00:15]} Kf8 {[%emt 0:02:41]} 41. d5 {[%emt 0:30:06]} Rc8 {[%emt 0:31:21]} 42. Ke4 {[%emt 0:00:15]} (42. Nxa6 $2 {is the wrong capture.} Ra8 43. a4 (43. Nc7 $2 Rxa3+ 44. Ke4 Rxh3 $19) 43... Rxa6 $19) 42... Ke7 {[%emt 0:02:40]} 43. d6+ {[%emt 0:00:29]} (43. Nxa6 Rc4+ 44. Kd3 hxg4 45. d6+ Kd7 (45... Ke6 46. Nc7+ Kd7 47. hxg4 $19) 46. hxg4 Rxg4 47. Nc5+ Kc6 $19) 43... Kd8 {[%emt 0:01:25]} 44. gxh5 {[%emt 0:00:17]} gxh5 {[%emt 0:00:06]} 45. Kf5 {[%emt 0:00:22]} (45. Nxa6 $2 {perishes.} Rc3 46. h4 Rxa3 $19) 45... Ra8 {[%emt 0:04:09]} 46. Kg5 {[%emt 0:00:41]} a5 {[%emt 0:00:36]} 47. bxa5 {[%emt 0:03:40]} (47. Kxh5 axb4 48. axb4 Ra4 $17) 47... Rc8 {[%emt 0:00:22]} 48. Nb7+ {[%emt 0:00:37]} Kd7 {[%emt 0:00:01]} 49. a6 {[%emt 0:02:35]} Rc3 {[%emt 0:00:24]} 50. Kf6 {[%emt 0:00:28]} Rf3+ {[%emt 0:00:24]} 51. Kg7 {[%emt 0:00:22]} Rxa3 {[%emt 0:02:06]} 52. Nc5+ {[%emt 0:00:26]} Ke8 {[%emt 0:01:51]} 53. Kf6 $2 {[%emt 0:03:42]} (53. Ne4 $18 Rxa6 54. Nf6+ Kd8 55. Kxf7 Ra7+ 56. Kf8) 53... Rf3+ {[%emt 0:01:22]} 54. Kg5 $2 {[%emt 0:00:34] [#]} Rxh3 $2 {[%emt 0:07:30]} ({Vorzuziehen ist} 54... b4 $1 $19 55. h4 (55. Kxh5 $2 {zu gefräßig.} Ra3 $19) 55... Rc3) 55. a7 $2 {[%emt 0:00:57]} (55. e6 $11 fxe6 56. Kf6) 55... Ra3 {[%emt 0:00:17]} 56. a8=Q+ {[%emt 0:01:06]} Rxa8 {[%emt 0:00:06]} 57. Kf6 $19 {[%emt 0:00:07]} h4 {[%emt 0:00:00]} 58. d7+ {[%emt 0:00:00]} Kf8 {[%emt 0:00:00]} 59. Nb7 {[%emt 0:00:00]} h3 {[%emt 0:00:00]} 0-1

[Event "Czech Youth U14 Boys 2024"]
[Site "Kouty nad Desnou"]
[Date "2024.03.11"]
[Round "3.12"]
[White "Pogorelskiy, Boris"]
[Black "Trcalek, Filip"]
[Result "1-0"]
[ECO "C54"]
[WhiteElo "1747"]
[BlackElo "1615"]
[Annotator "NA RC"]
[PlyCount "59"]
[EventDate "2024.03.10"]
[EventType "swiss"]
[EventCountry "CZE"]
[SourceTitle "playchess.com"]
[Source "ChessBase"]
[SourceQuality "1"]
[TimeControl "40/5400+30:1800+30"]

1. e4 {[%emt 0:00:02]} e5 {[%emt 0:00:15]} 2. Nf3 {[%emt 0:00:03]} Nc6 {[%emt 0:00:09]} 3. Bc4 {[%emt 0:00:05]} Bc5 {[%emt 0:00:08]} 4. c3 {[%emt 0:00:04]} Nf6 {[%emt 0:00:27]} 5. d4 {[%emt 0:00:11]} exd4 {[%emt 0:00:36]} 6. b4 {[%emt 0:00:02]} Bb6 {[%emt 0:01:07]} 7. e5 {[%emt 0:00:05]} d5 {[%emt 0:01:12]} 8. exf6 {[%emt 0:00:20]} dxc4 {[%emt 0:00:21]} 9. Qe2+ {[%emt 0:00:51]} Be6 {[%emt 0:01:55]} 10. b5 {[%emt 0:01:01]} Nb8 {[%emt 0:04:32]} 11. fxg7 {[%emt 0:03:14]} Rg8 {[%emt 0:00:22]} 12. cxd4 {[%emt 0:03:51]} Ba5+ {[%emt 0:06:21]} 13. Nbd2 {[%emt 0:00:24]} Rxg7 {[%emt 0:02:39]} 14. O-O {[%emt 0:00:28]} Qd5 {[%emt 0:02:37]} 15. Ne4 {[%emt 0:04:47]} Nd7 {[%emt 0:02:11]} 16. Bg5 {[%emt 0:11:54]} Bb4 {[%emt 0:04:32]} 17. a4 {[%emt 0:01:17]} Be7 {[%emt 0:01:27]} 18. Bxe7 {[%emt 0:02:47]} Kxe7 {[%emt 0:00:14]} 19. Nc3 {[%emt 0:01:08]} Qh5 {[%emt 0:04:08]} 20. d5 {[%emt 0:05:25]} Rag8 {[%emt 0:00:50]} 21. g3 {[%emt 0:00:23]} Rg6 {[%emt 0:00:35]} 22. dxe6 {[%emt 0:00:43]} fxe6 {[%emt 0:02:21]} 23. Nd4 {[%emt 0:03:58]} Qc5 {[%emt 0:05:14]} 24. Rad1 {[%emt 0:04:37]} Rh6 {[%emt 0:02:31]} 25. Rfe1 {[%emt 0:05:03]} Rgg6 {[%emt 0:02:13]} 26. Qe4 {[%emt 0:10:28]} Kf8 {[%emt 0:02:03]} 27. Qxb7 {[%emt 0:03:00]} Kf7 {[%emt 0:03:04]} 28. Nxe6 {[%emt 0:03:22]} Rxe6 {[%emt 0:00:56]} 29. Rxd7+ {[%emt 0:00:05]} Kf6 {[%emt 0:00:19]} 30. Ne4+ {[%emt 0:00:02]} 1-0